[Event "Turkish Women-ch Arzum 2022"]
[Site "Ayvalik"]
[Date "2022.03.06"]
[Round "3.15"]
[White "Demirtas, Hafize"]
[Black "Bursali, Ela"]
[Result "1/2-1/2"]
[ECO "B31"]
[WhiteElo "1779"]
[BlackElo "1353"]
[Annotator "NA"]
[PlyCount "132"]
[EventDate "2022.03.04"]
[EventType "swiss"]
[EventCountry "TUR"]
[SourceTitle "playchess.com"]
[Source "ChessBase"]
[SourceQuality "1"]
[TimeControl "5400+30"]

1. e4 {[%emt 0:01:00]} c5 {[%emt 0:01:00]} 2. Nf3 {[%emt 0:00:30]} Nc6 {[%emt 0:00:30]} 3. Bb5 {[%emt 0:00:30]} g6 {[%emt 0:00:30]} 4. Bxc6 {[%emt 0:00:30]} dxc6 {[%emt 0:00:30]} 5. d3 {[%emt 0:00:30]} Bg7 {[%emt 0:00:30]} 6. h3 {[%emt 0:00:30]} Nf6 {[%emt 0:00:30]} 7. a4 {[%emt 0:00:30]} a5 {[%emt 0:00:30]} 8. Na3 {[%emt 0:00:00]} b6 {[%emt 0:00:30]} 9. Nc4 {[%emt 0:00:00]} Ba6 {[%emt 0:00:30]} 10. Ne3 {[%emt 0:00:00]} Nd7 {[%emt 0:01:30]} 11. Rb1 {[%emt 0:00:00]} Nf6 {[%emt 0:02:30]} 12. b3 {[%emt 0:00:30]} Nh5 {[%emt 0:17:30]} 13. Ng4 {[%emt 0:01:30]} b5 {[%emt 0:09:30]} 14. e5 {[%emt 0:04:30]} f6 {[%emt 0:07:30]} 15. exf6 {[%emt 0:10:30]} exf6 {[%emt 0:00:30]} 16. O-O {[%emt 0:01:30]} O-O {[%emt 0:00:30]} 17. Nh6+ {[%emt 0:00:30]} Bxh6 {[%emt 0:00:30]} 18. Bxh6 {[%emt 0:00:30]} Re8 {[%emt 0:00:30]} 19. Re1 {[%emt 0:02:30]} Qd5 {[%emt 0:10:30]} 20. Qd2 {[%emt 0:02:30]} b4 {[%emt 0:00:30]} 21. Rxe8+ {[%emt 0:00:30]} Rxe8 {[%emt 0:00:30]} 22. Re1 {[%emt 0:00:00]} Rxe1+ {[%emt 0:03:30]} 23. Qxe1 {[%emt 0:00:00]} Kf7 {[%emt 0:00:30]} 24. Bc1 {[%emt 0:02:30]} Ng7 {[%emt 0:03:30]} 25. Bb2 {[%emt 0:00:30]} Nf5 {[%emt 0:02:30]} 26. Qa1 {[%emt 0:01:30]} Qe6 {[%emt 0:03:30]} 27. Kf1 {[%emt 0:00:00]} h5 {[%emt 0:04:30]} 28. Qc1 {[%emt 0:04:00]} g5 {[%emt 0:00:30]} 29. Nxg5+ {[%emt 0:10:30]} fxg5 {[%emt 0:00:30]} 30. Qxg5 {[%emt 0:00:00]} h4 31. Qd8 {[%emt 0:05:00]} Ne7 {[%emt 0:12:32]} 32. Qh8 {[%emt 0:08:30]} Qg6 {[%emt 0:04:29]} 33. Kg1 {[%emt 0:01:30]} Bxd3 {[%emt 0:03:14]} 34. cxd3 {[%emt 0:04:30]} Qxd3 {[%emt 0:00:02]} 35. Qg7+ {[%emt 0:03:30]} Ke8 {[%emt 0:03:09]} 36. Bf6 {[%emt 0:02:30]} Qd1+ {[%emt 0:00:38]} 37. Kh2 {[%emt 0:00:30]} Qd6+ {[%emt 0:00:00]} 38. Be5 {[%emt 0:00:30]} Qe6 {[%emt 0:00:41]} 39. f4 {[%emt 0:07:30]} Qxb3 {[%emt 0:01:39]} 40. Qh8+ {[%emt 0:00:30]} Kd7 {[%emt 0:01:22]} 41. Qxh4 {[%emt 0:00:00]} Qe6 {[%emt 0:00:42]} 42. Qf2 {[%emt 0:03:00]} Qd5 {[%emt 0:02:02]} 43. Qc2 {[%emt 0:04:30]} c4 {[%emt 0:01:12]} 44. h4 {[%emt 0:11:52]} Qd3 {[%emt 0:00:40]} 45. Qf2 {[%emt 0:01:00]} c3 {[%emt 0:00:37]} 46. Qa7+ {[%emt 0:01:23]} Ke6 {[%emt 0:00:30]} 47. Qc5 {[%emt 0:00:05]} Qd5 {[%emt 0:01:04]} 48. Qf2 {[%emt 0:01:14]} Qd2 {[%emt 0:00:54]} 49. Qc5 {[%emt 0:00:51]} Qd3 {[%emt 0:00:44]} 50. h5 {[%emt 0:02:32]} c2 {[%emt 0:01:17]} 51. Bb2 {[%emt 0:01:49]} Qe4 {[%emt 0:00:37]} 52. g3 {[%emt 0:02:51]} Nf5 {[%emt 0:01:02]} 53. Kh3 {[%emt 0:00:33]} Qh1+ {[%emt 0:00:49]} 54. Kg4 {[%emt 0:00:14]} Qd1+ {[%emt 0:00:30]} 55. Kg5 {[%emt 0:00:30]} Qd8+ {[%emt 0:00:00]} 56. Kg4 {[%emt 0:01:56]} Qg8+ {[%emt 0:00:00]} 57. Kf3 {[%emt 0:00:39]} Qxg3+ {[%emt 0:00:16]} 58. Ke2 {[%emt 0:00:38]} Qxf4 {[%emt 0:01:34]} 59. Qxc6+ {[%emt 0:00:30]} Nd6 {[%emt 0:00:00]} 60. Qxc2 {[%emt 0:00:57]} Qg4+ {[%emt 0:00:05]} 61. Ke1 {[%emt 0:00:33]} Qxh5 {[%emt 0:00:13]} 62. Qg2 {[%emt 0:00:20]} Qh4+ {[%emt 0:00:54]} 63. Kd1 {[%emt 0:00:12]} Qh5+ {[%emt 0:01:12]} 64. Kc1 {[%emt 0:00:17]} Qc5+ {[%emt 0:00:32]} 65. Kb1 {[%emt 0:00:17]} Qf5+ {[%emt 0:00:15]} 66. Kc1 {[%emt 0:00:22]} Qc5+ {[%emt 0:01:11]} 1/2-1/2

[Event "Turkish Women-ch Arzum 2022"]
[Site "Ayvalik"]
[Date "2022.03.06"]
[Round "3.16"]
[White "Sezer, Ipek"]
[Black "Akat, Elifnaz"]
[Result "0-1"]
[ECO "A45"]
[WhiteElo "1329"]
[BlackElo "1673"]
[Annotator "NA"]
[PlyCount "58"]
[EventDate "2022.03.04"]
[EventType "swiss"]
[EventCountry "TUR"]
[SourceTitle "playchess.com"]
[Source "ChessBase"]
[SourceQuality "1"]
[TimeControl "5400+30"]

1. d4 {[%emt 0:01:00]} c5 {[%emt 0:01:00]} 2. d5 {[%emt 0:00:30]} Nf6 {[%emt 0:00:30]} 3. Bg5 {[%emt 0:00:30]} Qb6 {[%emt 0:00:30]} 4. Nc3 {[%emt 0:00:00]} Qxb2 {[%emt 0:02:30]} 5. Bd2 {[%emt 0:00:00]} Qb6 {[%emt 0:01:30]} 6. e4 {[%emt 0:00:00]} d6 {[%emt 0:00:30]} 7. f4 {[%emt 0:01:00]} Qd8 {[%emt 0:02:30]} 8. Nf3 {[%emt 0:03:30]} a6 {[%emt 0:00:30]} 9. a4 {[%emt 0:01:30]} g6 {[%emt 0:05:30]} 10. Bc4 {[%emt 0:02:30]} Bg7 {[%emt 0:03:30]} 11. e5 {[%emt 0:05:30]} dxe5 {[%emt 0:05:30]} 12. fxe5 {[%emt 0:00:30]} Ng4 {[%emt 0:08:30]} 13. e6 {[%emt 0:09:30]} fxe6 {[%emt 0:02:30]} 14. dxe6 {[%emt 0:13:30]} O-O {[%emt 0:01:30]} 15. O-O {[%emt 0:01:30]} Nc6 {[%emt 0:07:30]} 16. Qe2 {[%emt 0:11:30]} Nd4 {[%emt 0:05:30]} 17. Qd3 {[%emt 0:07:30]} Qd6 {[%emt 0:05:30]} 18. g3 {[%emt 0:09:30]} Nxf3+ {[%emt 0:01:30]} 19. Rxf3 {[%emt 0:01:30]} Rxf3 {[%emt 0:00:30]} 20. Qxd6 {[%emt 0:00:00]} Bd4+ {[%emt 0:04:30]} 21. Kg2 {[%emt 0:11:05]} Rf2+ {[%emt 0:00:30]} 22. Kh3 {[%emt 0:00:30]} Rxh2+ {[%emt 0:00:00]} 23. Kxg4 {[%emt 0:00:04]} exd6 {[%emt 0:00:00]} 24. Kg5 {[%emt 0:01:28]} Kg7 {[%emt 0:00:30]} 25. Rf1 {[%emt 0:01:53]} Bxe6 {[%emt 0:01:30]} 26. Bxe6 {[%emt 0:00:30]} Bf6+ {[%emt 0:00:00]} 27. Kg4 {[%emt 0:00:50]} h5+ {[%emt 0:00:00]} 28. Kf3 {[%emt 0:00:40]} Rf8 {[%emt 0:01:30]} 29. Ke4 {[%emt 0:02:38]} Rxd2 {[%emt 0:00:30]} 0-1

[Event "Turkish Women-ch Arzum 2022"]
[Site "Ayvalik"]
[Date "2022.03.06"]
[Round "3.17"]
[White "Bese, Irem"]
[Black "Kalyoncu, Beren"]
[Result "1-0"]
[ECO "C67"]
[WhiteElo "1714"]
[BlackElo "1228"]
[Annotator "NA"]
[PlyCount "125"]
[EventDate "2022.03.04"]
[EventType "swiss"]
[EventCountry "TUR"]
[SourceTitle "playchess.com"]
[Source "ChessBase"]
[SourceQuality "1"]
[TimeControl "5400+30"]

1. e4 {[%emt 0:01:00]} e5 {[%emt 0:01:00]} 2. Nf3 {[%emt 0:00:30]} Nc6 {[%emt 0:00:30]} 3. Bb5 {[%emt 0:00:30]} Nf6 {[%emt 0:00:30]} 4. O-O {[%emt 0:00:30]} Nxe4 {[%emt 0:00:30]} 5. Re1 {[%emt 0:00:30]} Nd6 {[%emt 0:00:30]} 6. Bxc6 {[%emt 0:00:00]} dxc6 {[%emt 0:00:30]} 7. Nxe5 {[%emt 0:02:00]} Be7 {[%emt 0:00:30]} 8. d4 {[%emt 0:00:30]} Nf5 {[%emt 0:03:30]} 9. c3 {[%emt 0:03:30]} O-O {[%emt 0:00:30]} 10. Bf4 {[%emt 0:04:30]} Be6 {[%emt 0:01:30]} 11. Qe2 {[%emt 0:09:30]} Bg5 {[%emt 0:02:30]} 12. Bg3 {[%emt 0:02:30]} Re8 {[%emt 0:05:30]} 13. Na3 {[%emt 0:10:30]} Nxg3 {[%emt 0:02:30]} 14. hxg3 {[%emt 0:01:30]} Qe7 {[%emt 0:05:30]} 15. Nc2 {[%emt 0:03:30]} Rad8 {[%emt 0:06:30]} 16. f4 {[%emt 0:05:30]} Bf6 {[%emt 0:03:30]} 17. g4 {[%emt 0:01:30]} Bxe5 {[%emt 0:01:30]} 18. Qxe5 {[%emt 0:01:30]} Qd6 {[%emt 0:01:30]} 19. f5 {[%emt 0:04:30]} Qxe5 {[%emt 0:01:30]} 20. Rxe5 {[%emt 0:05:30]} Bd7 {[%emt 0:01:30]} 21. Rae1 {[%emt 0:01:30]} f6 {[%emt 0:00:30]} 22. Rxe8+ {[%emt 0:01:30]} Rxe8 {[%emt 0:00:30]} 23. Rxe8+ {[%emt 0:00:30]} Bxe8 {[%emt 0:00:00]} 24. Kf2 {[%emt 0:00:30]} Kf7 {[%emt 0:01:00]} 25. Ke3 {[%emt 0:01:30]} Ke7 {[%emt 0:01:30]} 26. Nb4 {[%emt 0:00:30]} Bf7 {[%emt 0:00:30]} 27. b3 {[%emt 0:01:30]} g6 {[%emt 0:03:30]} 28. Nd3 {[%emt 0:01:30]} g5 {[%emt 0:01:30]} 29. c4 {[%emt 0:02:30]} Kd6 {[%emt 0:03:30]} 30. Nc5 {[%emt 0:02:30]} b6 {[%emt 0:01:30]} 31. Ne4+ {[%emt 0:01:30]} Ke7 {[%emt 0:00:00]} 32. Kd3 {[%emt 0:01:30]} h5 {[%emt 0:03:00]} 33. Nf2 {[%emt 0:00:30]} b5 {[%emt 0:01:30]} 34. a4 {[%emt 0:02:30]} bxc4+ {[%emt 0:01:30]} 35. bxc4 {[%emt 0:00:30]} a5 {[%emt 0:00:30]} 36. gxh5 {[%emt 0:00:00]} Bxh5 {[%emt 0:00:30]} 37. g4 {[%emt 0:00:00]} Be8 {[%emt 0:00:00]} 38. Ne4 {[%emt 0:00:30]} Bd7 {[%emt 0:01:00]} 39. Nc5 {[%emt 0:00:30]} Bc8 {[%emt 0:00:00]} 40. Nb3 {[%emt 0:00:30]} Kd6 {[%emt 0:01:00]} 41. Nxa5 {[%emt 0:00:30]} c5 {[%emt 0:00:30]} 42. d5 {[%emt 0:00:30]} Ba6 {[%emt 0:00:30]} 43. Nc6 {[%emt 0:01:30]} Bb7 {[%emt 0:00:30]} 44. a5 {[%emt 0:01:30]} Kd7 {[%emt 0:03:30]} 45. a6 {[%emt 0:02:30]} Ba8 {[%emt 0:01:30]} 46. Na5 {[%emt 0:00:30]} Kc8 {[%emt 0:01:30]} 47. Nb3 {[%emt 0:01:30]} Kd7 {[%emt 0:00:30]} 48. Nxc5+ {[%emt 0:00:30]} Kd6 {[%emt 0:00:30]} 49. Nb7+ {[%emt 0:00:30]} Kd7 {[%emt 0:01:30]} 50. c5 {[%emt 0:00:00]} Kc8 {[%emt 0:00:30]} 51. c6 {[%emt 0:00:00]} Kb8 {[%emt 0:00:30]} 52. Nc5 {[%emt 0:00:30]} Ka7 {[%emt 0:01:30]} 53. Nd7 {[%emt 0:00:30]} Kxa6 {[%emt 0:00:30]} 54. Nxf6 {[%emt 0:00:30]} Kb6 {[%emt 0:00:30]} 55. Nd7+ {[%emt 0:00:30]} Kb5 {[%emt 0:00:30]} 56. f6 {[%emt 0:00:00]} Bxc6 {[%emt 0:00:00]} 57. dxc6 {[%emt 0:00:00]} Kxc6 {[%emt 0:00:00]} 58. f7 {[%emt 0:00:00]} Kxd7 {[%emt 0:00:00]} 59. f8=Q {[%emt 0:00:00]} Kc6 {[%emt 0:00:00]} 60. Kc4 {[%emt 0:00:00]} Kb7 {[%emt 0:00:00]} 61. Kc5 {[%emt 0:00:00]} c6 {[%emt 0:00:00]} 62. Qe7+ {[%emt 0:00:00]} Ka6 {[%emt 0:00:30]} 63. Qf7 {[%emt 0:00:00]} 1-0

[Event "Turkish Women-ch Arzum 2022"]
[Site "Ayvalik"]
[Date "2022.03.06"]
[Round "3.18"]
[White "Akin, Duru"]
[Black "Gonultas, Bakriya Anastasiya"]
[Result "1-0"]
[ECO "C44"]
[WhiteElo "1563"]
[BlackElo "1232"]
[Annotator "NA"]
[PlyCount "89"]
[EventDate "2022.03.04"]
[EventType "swiss"]
[EventCountry "TUR"]
[SourceTitle "playchess.com"]
[Source "ChessBase"]
[SourceQuality "1"]
[TimeControl "5400+30"]

1. e4 {[%emt 0:01:00]} e5 {[%emt 0:01:00]} 2. Nf3 {[%emt 0:00:30]} Nc6 {[%emt 0:00:30]} 3. d4 {[%emt 0:00:30]} exd4 {[%emt 0:00:30]} 4. Bc4 {[%emt 0:00:00]} Bc5 {[%emt 0:02:30]} 5. c3 {[%emt 0:00:00]} dxc3 {[%emt 0:12:30]} 6. Bxf7+ {[%emt 0:00:00]} Kf8 {[%emt 0:02:30]} 7. Bxg8 {[%emt 0:00:00]} cxb2 {[%emt 0:03:30]} 8. Bxb2 {[%emt 0:00:30]} Rxg8 {[%emt 0:00:30]} 9. O-O {[%emt 0:00:00]} d6 {[%emt 0:08:30]} 10. Qd2 {[%emt 0:02:00]} Qe7 {[%emt 0:05:30]} 11. Re1 {[%emt 0:02:30]} Ne5 {[%emt 0:08:30]} 12. Bxe5 {[%emt 0:16:30]} dxe5 {[%emt 0:00:30]} 13. Qb2 {[%emt 0:00:00]} Bd6 {[%emt 0:01:30]} 14. Nbd2 {[%emt 0:01:00]} Kf7 {[%emt 0:03:30]} 15. h4 {[%emt 0:02:30]} h6 {[%emt 0:01:30]} 16. Nc4 {[%emt 0:01:30]} Re8 {[%emt 0:00:30]} 17. Qb3 {[%emt 0:00:00]} Kf8 {[%emt 0:02:30]} 18. Ne3 {[%emt 0:02:00]} b6 {[%emt 0:10:30]} 19. Rad1 {[%emt 0:04:30]} Be6 {[%emt 0:01:30]} 20. Qb2 {[%emt 0:00:30]} Qf6 {[%emt 0:00:30]} 21. Nd5 {[%emt 0:05:30]} Bxd5 {[%emt 0:00:30]} 22. exd5 {[%emt 0:00:00]} Rad8 {[%emt 0:01:30]} 23. Re4 {[%emt 0:02:00]} Re7 {[%emt 0:01:30]} 24. Rde1 {[%emt 0:00:00]} Rde8 {[%emt 0:00:30]} 25. Nh2 {[%emt 0:02:00]} Kg8 {[%emt 0:01:30]} 26. R1e3 {[%emt 0:01:30]} Qf5 {[%emt 0:03:30]} 27. g4 {[%emt 0:01:30]} Qf6 {[%emt 0:00:30]} 28. h5 {[%emt 0:08:30]} Bc5 {[%emt 0:06:51]} 29. Rg3 {[%emt 0:01:30]} Rf8 {[%emt 0:00:46]} 30. Rf3 {[%emt 0:03:30]} Qh4 {[%emt 0:05:34]} 31. Rxf8+ {[%emt 0:00:30]} Kxf8 {[%emt 0:00:08]} 32. Nf3 {[%emt 0:00:30]} Qh3 {[%emt 0:00:20]} 33. Nxe5 {[%emt 0:01:30]} Kg8 {[%emt 0:00:36]} 34. Qe2 {[%emt 0:16:30]} Qh4 {[%emt 0:01:48]} 35. Qf3 {[%emt 0:02:30]} Bd6 {[%emt 0:01:36]} 36. Ng6 {[%emt 0:01:30]} Qh2+ {[%emt 0:00:35]} 37. Kf1 {[%emt 0:00:00]} Rxe4 {[%emt 0:01:36]} 38. Qxe4 {[%emt 0:01:00]} Be5 {[%emt 0:03:36]} 39. Nxe5 {[%emt 0:01:30]} Qh3+ {[%emt 0:00:30]} 40. Kg1 {[%emt 0:00:00]} Qc3 {[%emt 0:01:43]} 41. Ng6 {[%emt 0:00:00]} Kh7 {[%emt 0:02:00]} 42. Ne7+ {[%emt 0:00:30]} Kh8 {[%emt 0:00:00]} 43. Qe6 {[%emt 0:00:00]} Qc1+ {[%emt 0:01:06]} 44. Kg2 {[%emt 0:00:00]} Qg5 {[%emt 0:00:30]} 45. Qg8# {[%emt 0:00:00]} 1-0

[Event "Turkish Women-ch Arzum 2022"]
[Site "Ayvalik"]
[Date "2022.03.06"]
[Round "3.19"]
[White "Kayis, Gulcan Sena"]
[Black "Olmez, Sude"]
[Result "1-0"]
[ECO "C47"]
[WhiteElo "1597"]
[BlackElo "1170"]
[Annotator "NA"]
[PlyCount "55"]
[EventDate "2022.03.04"]
[EventType "swiss"]
[EventCountry "TUR"]
[SourceTitle "playchess.com"]
[Source "ChessBase"]
[SourceQuality "1"]
[TimeControl "5400+30"]

1. e4 {[%emt 0:01:00]} e5 {[%emt 0:01:00]} 2. Nf3 {[%emt 0:00:30]} Nc6 {[%emt 0:00:30]} 3. Nc3 {[%emt 0:00:30]} Nf6 {[%emt 0:00:30]} 4. Be2 {[%emt 0:00:00]} Bc5 {[%emt 0:02:30]} 5. Nxe5 {[%emt 0:00:00]} Nxe5 {[%emt 0:00:30]} 6. d4 {[%emt 0:00:30]} Bxd4 {[%emt 0:05:30]} 7. Qxd4 {[%emt 0:00:30]} d6 {[%emt 0:00:00]} 8. O-O {[%emt 0:00:30]} h6 {[%emt 0:02:00]} 9. f4 {[%emt 0:02:30]} Nc6 {[%emt 0:02:30]} 10. Qf2 {[%emt 0:04:30]} Bd7 {[%emt 0:31:30]} 11. Qg3 {[%emt 0:05:30]} Rh7 {[%emt 0:12:30]} 12. e5 {[%emt 0:02:30]} Bf5 {[%emt 0:05:30]} 13. exf6 {[%emt 0:00:30]} Qxf6 {[%emt 0:00:00]} 14. Bd3 {[%emt 0:03:30]} O-O-O {[%emt 0:00:00]} 15. Re1 {[%emt 0:06:30]} h5 {[%emt 0:05:30]} 16. Ne4 {[%emt 0:05:30]} Qg6 {[%emt 0:03:30]} 17. Qg5 {[%emt 0:03:30]} Kb8 {[%emt 0:04:30]} 18. Bd2 {[%emt 0:06:30]} Rh6 {[%emt 0:01:30]} 19. Qxg6 {[%emt 0:02:30]} Rxg6 {[%emt 0:01:25]} 20. Ng5 {[%emt 0:00:30]} Bxd3 {[%emt 0:00:46]} 21. cxd3 {[%emt 0:00:30]} Rf6 {[%emt 0:01:12]} 22. g3 {[%emt 0:01:30]} Rf5 {[%emt 0:00:35]} 23. Bc3 {[%emt 0:00:30]} f6 {[%emt 0:01:20]} 24. Ne6 {[%emt 0:00:30]} Rg8 {[%emt 0:01:28]} 25. Nxg7 {[%emt 0:00:30]} Rd5 {[%emt 0:01:30]} 26. Re3 {[%emt 0:01:30]} a6 {[%emt 0:00:18]} 27. Ne8 {[%emt 0:00:30]} Rf8 {[%emt 0:02:16]} 28. Nxf6 {[%emt 0:00:30]} 1-0

[Event "Turkish Women-ch Arzum 2022"]
[Site "Ayvalik"]
[Date "2022.03.06"]
[Round "3.20"]
[White "Kipik, Feyza"]
[Black "Oztatar, Meleknaz"]
[Result "1-0"]
[ECO "B01"]
[WhiteElo "1603"]
[BlackElo "1063"]
[Annotator "NA"]
[PlyCount "53"]
[EventDate "2022.03.04"]
[EventType "swiss"]
[EventCountry "TUR"]
[SourceTitle "playchess.com"]
[Source "ChessBase"]
[SourceQuality "1"]
[TimeControl "5400+30"]

1. e4 {[%emt 0:01:00]} d5 {[%emt 0:01:00]} 2. exd5 {[%emt 0:00:30]} Qxd5 {[%emt 0:00:30]} 3. Nc3 {[%emt 0:00:30]} Qa5 {[%emt 0:00:30]} 4. d4 {[%emt 0:00:30]} Nf6 {[%emt 0:00:30]} 5. Nf3 {[%emt 0:00:30]} Bf5 {[%emt 0:00:30]} 6. Bc4 {[%emt 0:00:30]} e6 {[%emt 0:00:30]} 7. Bd2 {[%emt 0:00:30]} c6 {[%emt 0:00:00]} 8. Nd5 {[%emt 0:00:00]} Qd8 {[%emt 0:00:00]} 9. Nxf6+ {[%emt 0:00:00]} Qxf6 {[%emt 0:02:30]} 10. Qe2 {[%emt 0:00:00]} Nd7 {[%emt 0:05:30]} 11. O-O-O {[%emt 0:00:00]} b5 {[%emt 0:02:30]} 12. Bb3 {[%emt 0:01:30]} a6 {[%emt 0:11:30]} 13. d5 {[%emt 0:03:30]} cxd5 {[%emt 0:03:30]} 14. Bc3 {[%emt 0:09:30]} Qh6+ {[%emt 0:08:30]} 15. Kb1 {[%emt 0:00:00]} Be7 {[%emt 0:02:30]} 16. Rhe1 {[%emt 0:07:00]} O-O {[%emt 0:07:30]} 17. Bxd5 {[%emt 0:05:30]} Rac8 {[%emt 0:05:30]} 18. Nd4 {[%emt 0:06:30]} Bf6 {[%emt 0:08:30]} 19. Nxf5 {[%emt 0:02:30]} exf5 {[%emt 0:00:00]} 20. Bb4 {[%emt 0:19:30]} Nc5 {[%emt 0:03:00]} 21. Qf3 {[%emt 0:04:30]} Na4 {[%emt 0:10:30]} 22. Bxf8 {[%emt 0:06:30]} Kxf8 {[%emt 0:00:30]} 23. Qxf5 {[%emt 0:02:30]} Rc7 {[%emt 0:02:30]} 24. Bc6 {[%emt 0:02:30]} Rxc6 {[%emt 0:02:30]} 25. Qd7 {[%emt 0:01:30]} g6 {[%emt 0:02:30]} 26. Qe8+ {[%emt 0:05:30]} Kg7 {[%emt 0:00:00]} 27. Rd7 {[%emt 0:01:30]} 1-0

[Event "Turkish Women-ch Arzum 2022"]
[Site "Ayvalik"]
[Date "2022.03.06"]
[Round "3.21"]
[White "Yalcin, Fahriye Zeynep"]
[Black "Alagoz, Zumra Meryem"]
[Result "0-1"]
[ECO "B08"]
[WhiteElo "1260"]
[BlackElo "1573"]
[Annotator "NA"]
[PlyCount "78"]
[EventDate "2022.03.04"]
[EventType "swiss"]
[EventCountry "TUR"]
[SourceTitle "playchess.com"]
[Source "ChessBase"]
[SourceQuality "1"]
[TimeControl "5400+30"]

1. e4 {[%emt 0:01:00]} g6 {[%emt 0:01:00]} 2. d4 {[%emt 0:00:30]} Bg7 {[%emt 0:00:30]} 3. Nc3 {[%emt 0:00:30]} d6 {[%emt 0:01:30]} 4. Be2 {[%emt 0:01:30]} Nf6 {[%emt 0:01:30]} 5. Nf3 {[%emt 0:01:30]} a6 {[%emt 0:01:30]} 6. a4 {[%emt 0:01:30]} b6 {[%emt 0:00:30]} 7. O-O {[%emt 0:05:30]} O-O {[%emt 0:00:30]} 8. e5 {[%emt 0:12:30]} Nfd7 {[%emt 0:07:30]} 9. Bf4 {[%emt 0:00:30]} Nc6 {[%emt 0:01:30]} 10. exd6 {[%emt 0:01:30]} cxd6 {[%emt 0:00:30]} 11. Qd2 {[%emt 0:03:30]} Bb7 {[%emt 0:11:30]} 12. Bh6 {[%emt 0:01:30]} Nf6 {[%emt 0:02:30]} 13. Bxg7 {[%emt 0:07:30]} Kxg7 {[%emt 0:00:00]} 14. Rfe1 {[%emt 0:02:30]} Qc7 {[%emt 0:05:00]} 15. Rac1 {[%emt 0:02:30]} e5 {[%emt 0:02:30]} 16. dxe5 {[%emt 0:00:30]} dxe5 {[%emt 0:01:30]} 17. Qg5 {[%emt 0:01:30]} Rad8 {[%emt 0:00:30]} 18. Nh4 {[%emt 0:03:30]} Nd4 {[%emt 0:02:30]} 19. Bd3 {[%emt 0:01:30]} Rfe8 {[%emt 0:02:30]} 20. Ne4 {[%emt 0:06:30]} Nxe4 {[%emt 0:18:30]} 21. Bxe4 {[%emt 0:01:30]} Bxe4 {[%emt 0:00:30]} 22. Rxe4 {[%emt 0:00:30]} h6 {[%emt 0:04:30]} 23. Qg3 {[%emt 0:03:30]} Qc6 {[%emt 0:00:30]} 24. f3 {[%emt 0:11:30]} Qxe4 {[%emt 0:01:30]} 25. fxe4 {[%emt 0:00:30]} Ne2+ {[%emt 0:00:00]} 26. Kf1 {[%emt 0:00:30]} Nxg3+ {[%emt 0:01:00]} 27. hxg3 {[%emt 0:00:30]} Rd4 {[%emt 0:00:30]} 28. b3 {[%emt 0:00:30]} Red8 {[%emt 0:00:30]} 29. Nf3 {[%emt 0:00:30]} Rxe4 {[%emt 0:01:30]} 30. Kf2 {[%emt 0:00:30]} g5 {[%emt 0:01:30]} 31. c3 {[%emt 0:00:30]} g4 {[%emt 0:00:30]} 32. Nh4 {[%emt 0:00:00]} Kf6 {[%emt 0:05:30]} 33. Kg1 {[%emt 0:01:00]} Ke6 {[%emt 0:01:30]} 34. Rf1 {[%emt 0:01:30]} Re2 {[%emt 0:01:30]} 35. Nf5 {[%emt 0:00:00]} Rdd2 {[%emt 0:01:30]} 36. Ng7+ {[%emt 0:00:00]} Ke7 {[%emt 0:02:30]} 37. Rb1 {[%emt 0:00:30]} Rxg2+ {[%emt 0:00:43]} 38. Kf1 {[%emt 0:00:00]} Rdf2+ {[%emt 0:01:00]} 39. Ke1 {[%emt 0:00:00]} Kf8 {[%emt 0:00:10]} 0-1

[Event "Turkish Women-ch Arzum 2022"]
[Site "Ayvalik"]
[Date "2022.03.06"]
[Round "3.22"]
[White "Salt, Ilayda"]
[Black "Mullakutukcu, Ela"]
[Result "1-0"]
[ECO "B22"]
[WhiteElo "1594"]
[BlackElo "1154"]
[Annotator "NA"]
[PlyCount "53"]
[EventDate "2022.03.04"]
[EventType "swiss"]
[EventCountry "TUR"]
[SourceTitle "playchess.com"]
[Source "ChessBase"]
[SourceQuality "1"]
[TimeControl "5400+30"]

1. d4 {[%emt 0:01:00]} c5 {[%emt 0:01:00]} 2. c3 {[%emt 0:00:30]} e6 {[%emt 0:00:30]} 3. e4 {[%emt 0:00:30]} Be7 {[%emt 0:00:30]} 4. Nf3 {[%emt 0:00:30]} Nf6 {[%emt 0:00:30]} 5. Bd3 {[%emt 0:00:30]} O-O {[%emt 0:00:30]} 6. Qc2 {[%emt 0:00:00]} h6 {[%emt 0:00:30]} 7. O-O {[%emt 0:00:00]} Nc6 {[%emt 0:00:30]} 8. a3 {[%emt 0:00:30]} a5 {[%emt 0:01:30]} 9. Be3 {[%emt 0:02:30]} b6 {[%emt 0:02:30]} 10. Nbd2 {[%emt 0:01:30]} Bb7 {[%emt 0:00:30]} 11. c4 {[%emt 0:07:30]} cxd4 {[%emt 0:02:30]} 12. Nxd4 {[%emt 0:00:30]} Nxd4 {[%emt 0:00:00]} 13. Bxd4 {[%emt 0:00:00]} Rc8 {[%emt 0:01:00]} 14. Nf3 {[%emt 0:04:00]} d5 {[%emt 0:03:30]} 15. exd5 {[%emt 0:02:30]} exd5 {[%emt 0:00:30]} 16. Rad1 {[%emt 0:06:30]} Ba6 {[%emt 0:22:30]} 17. Rfe1 {[%emt 0:12:30]} Re8 {[%emt 0:06:30]} 18. Ne5 {[%emt 0:14:30]} Qc7 {[%emt 0:02:30]} 19. Bf5 {[%emt 0:02:30]} Rcd8 {[%emt 0:00:30]} 20. Nxf7 {[%emt 0:25:29]} Kxf7 {[%emt 0:01:30]} 21. Be6+ {[%emt 0:11:35]} Kf8 {[%emt 0:00:30]} 22. Qg6 {[%emt 0:00:12]} Bd6 {[%emt 0:01:30]} 23. Bxf6 {[%emt 0:00:37]} Rb8 {[%emt 0:00:30]} 24. Bxd5 {[%emt 0:03:18]} Bb7 {[%emt 0:01:30]} 25. Bxg7+ {[%emt 0:02:02]} Qxg7 {[%emt 0:00:30]} 26. Qf5+ {[%emt 0:00:57]} Qf7 {[%emt 0:00:30]} 27. Qxf7# {[%emt 0:00:38]} 1-0

[Event "Turkish Women-ch Arzum 2022"]
[Site "Ayvalik"]
[Date "2022.03.06"]
[Round "3.23"]
[White "Bassari, Senem Gul"]
[Black "Gulceken, Sumeyye"]
[Result "0-1"]
[ECO "C02"]
[WhiteElo "1197"]
[BlackElo "1591"]
[Annotator "NA"]
[PlyCount "62"]
[EventDate "2022.03.04"]
[EventType "swiss"]
[EventCountry "TUR"]
[SourceTitle "playchess.com"]
[Source "ChessBase"]
[SourceQuality "1"]
[TimeControl "5400+30"]

1. e4 {[%emt 0:01:00]} e6 {[%emt 0:01:00]} 2. d4 {[%emt 0:00:30]} d5 {[%emt 0:00:30]} 3. e5 {[%emt 0:00:30]} c5 {[%emt 0:00:30]} 4. c3 {[%emt 0:00:30]} Qb6 {[%emt 0:00:30]} 5. Nf3 {[%emt 0:00:30]} Nc6 {[%emt 0:00:30]} 6. Na3 {[%emt 0:00:30]} cxd4 {[%emt 0:00:30]} 7. cxd4 {[%emt 0:00:30]} Bb4+ {[%emt 0:00:00]} 8. Bd2 {[%emt 0:00:00]} Nge7 {[%emt 0:01:00]} 9. Nb5 {[%emt 0:05:00]} Bxd2+ {[%emt 0:02:30]} 10. Qxd2 {[%emt 0:00:30]} O-O {[%emt 0:00:30]} 11. Bd3 {[%emt 0:06:30]} f6 {[%emt 0:02:30]} 12. O-O {[%emt 0:02:30]} fxe5 {[%emt 0:01:30]} 13. dxe5 {[%emt 0:00:30]} a6 {[%emt 0:01:30]} 14. Nc3 {[%emt 0:02:30]} Bd7 {[%emt 0:07:30]} 15. a3 {[%emt 0:04:30]} Rac8 {[%emt 0:10:30]} 16. Na4 {[%emt 0:11:30]} Qa7 {[%emt 0:01:30]} 17. Nc3 {[%emt 0:05:30]} d4 {[%emt 0:11:30]} 18. Ne4 {[%emt 0:01:30]} Rxf3 {[%emt 0:03:30]} 19. gxf3 {[%emt 0:00:30]} Nxe5 {[%emt 0:00:30]} 20. Kg2 {[%emt 0:05:30]} Nxd3 {[%emt 0:01:30]} 21. Qxd3 {[%emt 0:03:30]} Bb5 {[%emt 0:00:30]} 22. Qd2 {[%emt 0:02:30]} Bxf1+ {[%emt 0:00:30]} 23. Rxf1 {[%emt 0:00:30]} Ng6 {[%emt 0:02:30]} 24. Qg5 {[%emt 0:04:30]} Qb8 {[%emt 0:03:30]} 25. Kh1 {[%emt 0:06:30]} Qf4 {[%emt 0:05:30]} 26. Qxf4 {[%emt 0:10:30]} Nxf4 {[%emt 0:00:00]} 27. b4 {[%emt 0:04:30]} b6 {[%emt 0:01:00]} 28. Rd1 {[%emt 0:01:56]} Rc2 {[%emt 0:01:30]} 29. h4 {[%emt 0:02:53]} e5 {[%emt 0:00:30]} 30. Rd2 {[%emt 0:04:05]} d3 {[%emt 0:03:30]} 31. Kg1 {[%emt 0:01:07]} Kf7 {[%emt 0:00:30]} 0-1